bitfinex/quotes_BTCUSD_20240815
["timestamp","ask_amount","ask_price","bid_price","bid_amount"]
[1723745773915,1.347164,57987.0,57976.0,0.09052344]
[1723745773916,0.647437,57978.0,57976.0,0.09052344]
[1723745774118,2.28222431,57978.0,57976.0,0.09052344]
[1723745774331,2.18788481,57978.0,57976.0,0.09052344]
[1723745774774,1.13486881,57978.0,57976.0,0.09052344]
[1723745775203,1.47961988,57978.0,57976.0,0.09052344]
[1723745775467,1.49776188,57978.0,57976.0,0.09052344]
[1723745775689,1.39384261,57978.0,57976.0,0.09052344]
[1723745775901,1.73880061,57978.0,57976.0,0.09052344]
[1723745776523,2.44685861,57978.0,57976.0,0.09052344]
[1723745776935,2.04988281,57978.0,57976.0,0.09052344]
[1723745777148,2.14988281,57978.0,57976.0,0.09052344]
[1723745777351,2.00190061,57978.0,57976.0,0.09052344]
[1723745777565,2.10190061,57978.0,57976.0,0.09052344]
[1723745777979,2.10190061,57978.0,57977.0,0.13614981]
[1723745778384,2.44685861,57978.0,57977.0,0.13614981]
[1723745780250,1.39384261,57978.0,57977.0,0.13614981]
[1723745780457,1.73880061,57978.0,57977.0,0.13614981]
[1723745780663,2.39484081,57978.0,57977.0,0.13614981]
[1723745780877,2.73979881,57978.0,57977.0,0.13614981]
[1723745781699,0.1,57977.0,57967.0,0.13535353]
[1723745781914,0.45981681,57976.0,57967.0,0.13535353]
[1723745782114,1.24975681,57976.0,57967.0,0.13535353]
[1723745782324,1.93969681,57976.0,57967.0,0.13535353]
[1723745782527,0.547525,57968.0,57967.0,0.13535353]
[1723745782733,1.85799081,57968.0,57967.0,0.13535353]
[1723745782939,1.97845342,57968.0,57967.0,0.13535353]
[1723745783154,2.39260642,57968.0,57967.0,0.13535353]
[1723745783366,2.39260642,57968.0,57957.0,0.13282828]
[1723745783367,1.933165,57961.0,57957.0,0.13282828]
[1723745783572,0.892692,57958.0,57957.0,0.13282828]
[1723745783779,1.50932354,57958.0,57957.0,0.13282828]
[1723745784187,1.85440054,57958.0,57957.0,0.13282828]
[1723745784388,1.50932354,57958.0,57957.0,0.13282828]
[1723745784806,2.11750054,57958.0,57957.0,0.13282828]
[1723745785044,2.16256315,57958.0,57957.0,0.13282828]
[1723745785257,1.81748615,57958.0,57957.0,0.13282828]
[1723745785906,2.16256315,57958.0,57957.0,0.13282828]
[1723745786522,2.11750054,57958.0,57957.0,0.13282828]
[1723745786952,1.16424654,57958.0,57957.0,0.13282828]
[1723745787359,1.52501901,57958.0,57957.0,0.13282828]
[1723745787807,1.83318162,57958.0,57957.0,0.13282828]
[1723745788015,2.52333562,57958.0,57957.0,0.13282828]
[1723745788228,2.17825862,57958.0,57957.0,0.13282828]
[1723745788448,2.30639469,57958.0,57957.0,0.02930428]
[1723745788671,2.30639469,57958.0,57957.0,2.8e-07]
[1723745788672,2.65180986,57958.0,57957.0,2.8e-07]
[1723745788889,1.552981,57953.0,57952.0,0.279289]
[1723745789122,2.76255004,57953.0,57952.0,0.244789]
[1723745789337,3.21971965,57953.0,57952.0,0.244789]
[1723745789551,3.21971965,57953.0,57952.0,0.003241]
[1723745789552,3.18465704,57953.0,57952.0,0.003241]
[1723745789763,2.379654,57951.0,57950.0,0.008928]
[1723745789979,4.39126299,57951.0,57950.0,0.008928]
[1723745790186,3.25652059,57951.0,57950.0,0.008928]
[1723745790488,0.99299,57938.0,57937.0,0.10146177]
[1723745790696,3.88588888,57938.0,57937.0,0.10146177]
[1723745790914,4.32027206,57938.0,57937.0,0.10146177]
[1723745791140,4.34027206,57938.0,57937.0,0.10146177]
[1723745791380,4.34027206,57938.0,57928.0,0.00821]
[1723745791381,1.793652,57928.0,57927.0,0.07409669]
[1723745791579,2.21089372,57928.0,57927.0,0.07409669]
[1723745792003,1.25388172,57928.0,57927.0,0.07409669]
[1723745792205,0.06380681,57928.0,57927.0,0.62049669]
[1723745792436,0.02568448,57928.0,57927.0,0.62049669]
[1723745792642,0.38986702,57928.0,57927.0,0.62049669]
[1723745792869,0.21723902,57928.0,57927.0,0.62049669]
[1723745793086,0.04568448,57928.0,57927.0,0.62049669]
[1723745793299,0.04568448,57928.0,57927.0,1.13838969]
[1723745793300,0.02568448,57928.0,57927.0,1.13838969]
[1723745793514,0.01,57931.0,57927.0,0.62049669]
[1723745793759,0.01,57931.0,57930.0,0.3585]
[1723745793986,0.04568946,57931.0,57930.0,0.3585]
[1723745794217,0.735101,57931.0,57930.0,0.3585]
[1723745794423,0.547884,57928.0,57927.0,0.39999669]
[1723745794635,1.5395396,57928.0,57927.0,0.21209669]
[1723745794831,1.58492495,57928.0,57927.0,0.21209669]
[1723745795087,0.11919714,57928.0,57927.0,0.54469669]
[1723745795289,0.13101565,57937.0,57929.0,0.3326]
[1723745795499,0.13101565,57937.0,57927.0,0.21209669]
[1723745795500,0.02,57934.0,57930.0,0.1834]
[1723745795707,0.172598,57938.0,57931.0,0.3326]
[1723745795708,0.02,57932.0,57931.0,0.3326]
[1723745796141,0.02812329,57932.0,57931.0,0.3326]
[1723745796396,0.02812329,57932.0,57931.0,1.44005921]
[1723745796601,0.008928,57939.0,57933.0,0.172613]
[1723745796602,0.05757999,57934.0,57933.0,0.172613]
[1723745796808,0.05757999,57934.0,57933.0,1.03461954]
[1723745796809,0.02813706,57934.0,57933.0,1.03461954]
[1723745797010,0.008928,57939.0,57938.0,0.5211]
[1723745797221,0.008928,57939.0,57938.0,1.90084054]
[1723745797717,0.10299188,57943.0,57938.0,1.90084054]
[1723745797718,0.05758146,57943.0,57942.0,1.19633]
[1723745797921,0.05758146,57944.0,57943.0,0.862915]
[1723745798128,0.05758146,57944.0,57943.0,1.71303554]
[1723745798331,0.04541042,57950.0,57943.0,1.71303554]
[1723745798332,0.05758146,57946.0,57945.0,0.172577]
[1723745798538,0.0575899,57946.0,57944.0,0.172579]
[1723745798740,0.0575899,57945.0,57943.0,0.160823]
[1723745798938,0.05758982,57944.0,57943.0,0.160823]
[1723745799139,0.04541042,57944.0,57943.0,0.333406]
[1723745799273,0.04541042,57944.0,57943.0,0.160823]
[1723745799472,0.58315042,57944.0,57943.0,0.160823]
[1723745799678,0.58315042,57944.0,57942.0,0.1877]
[1723745799679,0.537749,57943.0,57942.0,0.1877]
[1723745799927,0.67462108,57943.0,57942.0,0.1877]
[1723745800097,0.36519,57939.0,57938.0,0.000824]
[1723745800320,1.45081435,57939.0,57938.0,0.13635201]
[1723745800890,0.77320798,57939.0,57938.0,0.13635201]
[1723745801000,0.76043435,57939.0,57938.0,0.13635201]
[1723745801210,1.20562435,57939.0,57938.0,0.13475201]
[1723745801414,0.88314,57928.0,57927.0,0.07409669]
[1723745801624,1.63682262,57928.0,57927.0,0.07569669]
[1723745802006,1.99485225,57928.0,57927.0,0.07569669]
[1723745802365,1.64959625,57928.0,57927.0,0.07569669]
[1723745802573,1.64960093,57928.0,57927.0,0.07569669]
[1723745802805,1.20434493,57928.0,57927.0,0.07569669]
[1723745802956,0.67475888,57928.0,57927.0,0.07569669]
[1723745803160,0.32950288,57928.0,57927.0,0.07569669]
[1723745803380,0.24372561,57928.0,57927.0,0.07569669]
[1723745803607,0.58898161,57928.0,57927.0,0.07569669]
[1723745803790,0.93423761,57928.0,57927.0,0.07569669]
[1723745803967,0.58898161,57928.0,57927.0,0.07569669]
[1723745804203,0.05109761,57928.0,57927.0,0.07569669]
[1723745804455,0.04539129,57928.0,57927.0,0.42979669]
[1723745804768,0.04539129,57928.0,57927.0,0.94768969]
[1723745805070,0.52743913,57954.0,57937.0,0.172601]
[1723745805071,0.01,57938.0,57937.0,0.172601]
[1723745805227,0.02,57932.0,57929.0,0.3541]
[1723745805431,0.02,57930.0,57929.0,0.3541]
[1723745805631,0.02570402,57930.0,57929.0,0.3541]
[1723745805838,0.00570402,57930.0,57929.0,0.871975]
[1723745806012,0.02570402,57932.0,57929.0,0.3541]
[1723745806213,0.01,57930.0,57929.0,0.3541]
[1723745806414,0.02,57930.0,57929.0,0.3541]
[1723745806613,0.00570402,57930.0,57929.0,0.526725]
[1723745806817,0.02,57930.0,57929.0,0.3541]
[1723745807043,0.57166319,57930.0,57929.0,0.3541]
[1723745807248,0.57166319,57930.0,57928.0,0.19274153]
[1723745807249,0.172625,57929.0,57928.0,0.00014153]
[1723745807419,0.3278551,57929.0,57928.0,0.00014153]
[1723745807605,1.18990964,57929.0,57928.0,0.00014153]
[1723745807806,1.63515964,57929.0,57928.0,0.00014153]
[1723745808126,1.63515964,57929.0,57927.0,0.07410811]
[1723745808127,0.88314,57928.0,57927.0,0.07410811]
[1723745808323,1.44940337,57928.0,57927.0,0.07410811]
[1723745808537,1.1169108,57928.0,57927.0,0.07410811]
[1723745808757,0.75888637,57928.0,57927.0,0.07444626]
[1723745808966,1.54939837,57928.0,57927.0,0.07444626]
[1723745809183,1.84520654,57928.0,57927.0,0.07444626]
[1723745809552,1.90741872,57928.0,57927.0,0.07444626]
[1723745809798,1.11190672,57928.0,57927.0,0.07444626]
[1723745810034,0.06444334,57928.0,57927.0,0.07444626]
[1723745810978,0.57663211,57928.0,57927.0,0.07527126]
[1723745811208,0.57663211,57928.0,57927.0,0.44437126]
[1723745811209,0.06445341,57928.0,57927.0,0.44437126]
[1723745811446,0.05036092,57928.0,57927.0,0.44437126]
[1723745811683,0.05036092,57928.0,57927.0,1.54376339]
[1723745811866,0.05036092,57928.0,57927.0,1.37005593]
[1723745812072,0.05036092,57928.0,57927.0,1.3256188]
[1723745812220,0.05036092,57928.0,57927.0,1.6708808]
[1723745812221,0.04465562,57928.0,57927.0,1.6708808]
[1723745812402,0.15491327,57968.0,57941.0,0.1948]
[1723745812403,0.015,57947.0,57941.0,0.1948]
[1723745812603,0.01,57944.0,57942.0,0.3642]
[1723745812805,0.005,57945.0,57942.0,0.3642]
[1723745812806,0.01,57943.0,57942.0,0.3642]
[1723745813085,0.05535051,57943.0,57942.0,0.3642]
[1723745813215,0.06105409,57943.0,57942.0,0.3642]
[1723745813409,0.05105409,57943.0,57942.0,0.3642]
[1723745813609,0.05105409,57943.0,57942.0,1.45458454]
[1723745813871,0.04535051,57943.0,57942.0,1.45458454]
[1723745814413,0.04535051,57943.0,57942.0,1.79975654]
[1723745814616,0.015,57960.0,57942.0,0.22745454]
[1723745814818,0.07201533,57975.0,57941.0,0.1948]
[1723745814819,0.04534765,57959.0,57958.0,0.517615]
[1723745815025,0.04534765,57959.0,57958.0,1.24816954]
[1723745815229,0.04534765,57959.0,57958.0,1.93832354]
[1723745815469,0.04534765,57959.0,57958.0,2.10987808]
[1723745815665,0.05756411,57964.0,57963.0,0.731523]
[1723745815892,0.04153576,57964.0,57963.0,0.73055454]
[1723745816111,0.04153576,57964.0,57963.0,1.24812454]
[1723745816320,0.04153576,57964.0,57963.0,1.59317154]
[1723745816794,0.05756308,57966.0,57963.0,0.36635454]
[1723745816924,0.05756308,57966.0,57965.0,0.862587]
[1723745817128,0.05756308,57970.0,57969.0,0.345011]
[1723745817347,0.0109064,57978.0,57972.0,0.3642]
[1723745817545,0.0109064,57978.0,57977.0,0.367282]
[1723745817546,0.0009064,57978.0,57977.0,0.367282]
[1723745817774,0.0009064,57978.0,57977.0,0.712246]
[1723745817977,0.0159064,57978.0,57977.0,0.1948]
[1723745818305,0.01,57975.0,57972.0,0.3642]
[1723745818510,0.01,57973.0,57972.0,0.3642]
[1723745818713,0.0009064,57978.0,57972.0,0.3642]
[1723745818714,0.0009064,57978.0,57977.0,0.731482]
[1723745818922,0.0009064,57978.0,57977.0,1.42141]
[1723745819138,0.0009064,57978.0,57977.0,1.73577224]
[1723745819547,0.0009064,57978.0,57977.0,0.90303654]
[1723745819723,0.0009064,57978.0,57977.0,1.24800054]
[1723745819925,0.0009064,57978.0,57977.0,0.559]
[1723745820130,0.0159064,57978.0,57977.0,0.559]
[1723745820507,0.0009064,57978.0,57977.0,0.559]
[1723745820706,0.0009064,57978.0,57977.0,0.731482]
[1723745820909,0.0009064,57978.0,57977.0,0.90303654]
[1723745821108,0.0009064,57978.0,57977.0,1.59296454]
[1723745821317,0.0009064,57978.0,57977.0,1.93792854]
[1723745821681,0.0009064,57978.0,57977.0,0.559]
[1723745821887,0.0009064,57978.0,57977.0,0.73055454]
[1723745822163,0.0009064,57978.0,57977.0,1.24800054]
[1723745822820,0.0009064,57978.0,57977.0,2.09722679]
[1723745822822,0.0009064,57978.0,57977.0,1.75226279]
[1723745823053,0.0009064,57978.0,57977.0,0.73055454]
[1723745823445,0.01406401,57993.0,57986.0,0.3584]
[1723745823683,0.09984128,57987.0,57986.0,0.3584]
[1723745823891,0.09984128,57987.0,57986.0,0.35873836]
[1723745824099,0.09984128,57987.0,57986.0,0.00033836]
[1723745824100,0.61719728,57987.0,57986.0,0.00033836]
[1723745824306,1.47855982,57987.0,57986.0,0.00033836]
[1723745824506,1.52793448,57987.0,57986.0,0.00033836]
[1723745824708,0.01406401,57968.0,57967.0,0.3584]
[1723745824927,0.01,57962.0,57961.0,0.1919]
[1723745825150,0.01,57962.0,57960.0,0.3584]
[1723745825151,0.18659301,57961.0,57960.0,0.3584]
[1723745825367,0.87680101,57955.0,57954.0,0.0016]
[1723745825677,1.52289579,57955.0,57954.0,0.0016]
[1723745825872,2.51426744,57955.0,57954.0,0.0016]
[1723745826082,2.16917244,57955.0,57954.0,0.0016]
[1723745826731,0.53194801,57928.0,57923.0,0.3584]
[1723745826951,0.53183763,57928.0,57923.0,0.3584]
[1723745827154,0.53183763,57928.0,57920.0,0.1969]
[1723745827155,0.18658163,57928.0,57920.0,0.1969]
[1723745827359,0.87709363,57928.0,57920.0,0.1969]
[1723745827564,1.39390417,57928.0,57920.0,0.005]
[1723745828000,1.4095107,57928.0,57920.0,0.005]
[1723745828618,1.39390417,57928.0,57920.0,0.005]
[1723745829181,1.49390417,57928.0,57920.0,0.005]
[1723745829399,1.04864817,57928.0,57920.0,0.005]
[1723745829611,0.70339217,57928.0,57920.0,0.005]
[1723745829811,1.39390417,57928.0,57920.0,0.005]
[1723745830092,1.04864817,57928.0,57920.0,0.005]
[1723745830375,0.01395363,57928.0,57920.0,0.005]
[1723745830824,0.87709363,57928.0,57920.0,0.005]
[1723745830999,1.04864817,57928.0,57920.0,0.005]
[1723745831204,1.39390417,57928.0,57920.0,0.005]
[1723745831332,1.49390417,57928.0,57920.0,0.005]
[1723745831537,1.14864817,57928.0,57920.0,0.005]
[1723745831825,0.70339217,57928.0,57920.0,0.005]
[1723745831978,1.04864817,57928.0,57920.0,0.005]
[1723745832337,1.83916017,57928.0,57920.0,0.005]
[1723745832535,1.85474501,57928.0,57920.0,0.005]
[1723745832684,1.50948901,57928.0,57920.0,0.005]
[1723745833106,1.50948901,57928.0,57919.0,1e-06]
[1723745833107,0.00395363,57920.0,57919.0,1e-06]
[1723745833327,0.2,57916.0,57915.0,5.7e-07]
[1723745833527,0.18662863,57912.0,57911.0,0.0002]
[1723745833733,0.87737563,57909.0,57908.0,0.11667526]
[1723745833934,1.42407018,57909.0,57908.0,0.11667526]
[1723745834142,0.7177839,57909.0,57908.0,0.11667526]
[1723745834295,1.23470744,57909.0,57908.0,0.11667526]
[1723745834496,1.13470744,57909.0,57908.0,0.11667526]
[1723745834703,0.78933844,57909.0,57908.0,0.11667526]
[1723745834911,0.70356117,57909.0,57908.0,0.11667526]
[1723745835529,1.04893017,57909.0,57908.0,0.11667526]
[1723745836294,0.70356117,57909.0,57908.0,0.11667526]
[1723745836535,0.172684,57909.0,57908.0,0.11667526]
[1723745836772,0.53200663,57909.0,57908.0,0.11667526]
[1723745837008,1.04893017,57909.0,57908.0,0.11667526]
[1723745837508,1.39429917,57909.0,57908.0,0.11667526]
[1723745838392,1.85549917,57909.0,57908.0,0.06014477]
[1723745838597,2.19429917,57909.0,57908.0,0.06014477]
[1723745838803,1.84893017,57909.0,57908.0,0.06014477]
[1723745839158,1.74893017,57909.0,57908.0,0.06014477]
[1723745839566,1.04893017,57909.0,57908.0,0.06014477]
[1723745839777,1.39429917,57909.0,57908.0,0.06014477]
[1723745840395,1.49429917,57909.0,57908.0,0.06014477]
[1723745840596,2.19429917,57909.0,57908.0,0.06014477]
[1723745840801,2.20984881,57909.0,57908.0,0.06014477]
[1723745841248,2.55521781,57909.0,57908.0,0.06014477]
[1723745841687,2.20984881,57909.0,57908.0,0.06014477]
[1723745841888,0.71395363,57909.0,57908.0,0.06014477]
[1723745842125,1.74893017,57909.0,57908.0,0.06014477]
[1723745842540,2.09429917,57909.0,57908.0,0.06014477]
[1723745842744,1.39429917,57909.0,57908.0,0.06014477]
[1723745842951,2.30286817,57909.0,57908.0,0.06014477]
[1723745843356,2.40286817,57909.0,57908.0,0.06014477]
[1723745844062,2.05749917,57909.0,57908.0,0.06014477]
[1723745844310,2.19429917,57909.0,57908.0,0.06014477]
[1723745844558,1.49429917,57909.0,57908.0,0.06014477]
[1723745844836,0.01395363,57915.0,57908.0,0.06014477]
[1723745845105,0.01395363,57910.0,57908.0,0.06014477]
[1723745845370,0.18663763,57909.0,57908.0,0.06014477]
[1723745845979,0.53200663,57909.0,57908.0,0.06014477]
[1723745846148,0.01395363,57910.0,57908.0,0.06014477]
[1723745846429,0.182684,57909.0,57908.0,0.06014477]
[1723745846700,0.6177839,57909.0,57908.0,0.06014477]
[1723745846979,0.01395363,57909.0,57908.0,0.06014477]
[1723745847244,0.01,57912.0,57908.0,0.06014477]
[1723745847491,0.01,57910.0,57909.0,0.3528]
[1723745847734,0.18663763,57909.0,57908.0,0.06014477]
[1723745847975,0.87737563,57909.0,57908.0,0.06096977]
[1723745848203,1.04983768,57909.0,57908.0,0.06096977]
[1723745848398,1.39520668,57909.0,57908.0,0.06096977]
[1723745848631,1.51076026,57909.0,57908.0,0.06096977]
[1723745849275,1.66832963,57901.0,57900.0,0.00341]
[1723745849505,0.87752563,57899.0,57898.0,0.08546222]
[1723745849725,1.86120076,57899.0,57898.0,0.06157894]
[1723745849925,1.53799728,57899.0,57898.0,0.06157894]
[1723745850135,1.51006275,57899.0,57898.0,0.06157894]
[1723745850336,2.21006275,57899.0,57898.0,0.06157894]
[1723745850952,0.02555358,57899.0,57898.0,0.06157894]
[1723745851235,0.00090751,57909.0,57898.0,0.12349683]
[1723745851455,0.00090751,57909.0,57898.0,0.06157894]
[1723745851456,0.01,57899.0,57898.0,0.06157894]
[1723745851642,0.18666763,57899.0,57898.0,0.06157894]
[1723745851951,1.39450917,57899.0,57898.0,0.06157894]
[1723745852156,1.41007151,57899.0,57898.0,0.06157894]
[1723745852569,0.92674557,57899.0,57898.0,0.06157894]
[1723745852779,0.20222881,57899.0,57898.0,0.06157894]
[1723745852960,0.89308813,57899.0,57898.0,0.06157894]
[1723745853432,0.92674832,57899.0,57898.0,0.06157894]
[1723745853663,0.21622789,57899.0,57898.0,0.06157894]
[1723745853872,0.21622789,57899.0,57898.0,0.40797894]
[1723745853873,0.54765913,57899.0,57898.0,0.40797894]
[1723745854068,0.89879679,57899.0,57898.0,0.40797894]
[1723745854511,1.46092595,57899.0,57898.0,0.05157894]
[1723745854718,0.63922266,57899.0,57898.0,0.05157894]
[1723745854939,0.55336779,57899.0,57898.0,0.05157894]
[1723745855172,0.02127116,57899.0,57898.0,0.05157894]
[1723745855389,0.02127116,57899.0,57898.0,0.61197894]
[1723745855609,0.0155625,57899.0,57898.0,1.36288337]
[1723745855814,0.02795422,57915.0,57898.0,1.36288337]
[1723745855815,0.05740544,57912.0,57908.0,0.518062]
[1723745856062,0.01275578,57923.0,57908.0,1.57299154]
[1723745856276,0.00570645,57922.0,57909.0,0.538]
[1723745856471,0.05741682,57932.0,57928.0,0.172626]
[1723745856688,0.04514645,57938.0,57937.0,0.172601]
[1723745856883,0.04469132,57953.0,57937.0,0.172601]
[1723745856884,0.05741682,57951.0,57944.0,0.172578]
[1723745857103,0.02126794,57950.0,57945.0,0.70304679]
[1723745857336,0.01,57956.0,57945.0,0.70304679]
[1723745857337,0.0155648,57949.0,57948.0,0.172568]
[1723745857535,0.0997309,57968.0,57950.0,0.3563]
[1723745857536,0.01556455,57955.0,57950.0,0.3563]
[1723745857737,0.01,57965.0,57952.0,0.3563]
[1723745857939,0.11163618,57967.0,57952.0,0.3563]
[1723745857940,0.02556565,57964.0,57954.0,0.3563]
[1723745858153,0.009053,57967.0,57964.0,0.5459]
[1723745858369,0.009053,57967.0,57966.0,0.529214]
[1723745858571,0.04608108,57978.0,57974.0,0.172489]
[1723745858572,0.0009064,57978.0,57974.0,0.172489]
[1723745858796,0.0009064,57978.0,57977.0,0.529182]
[1723745859056,0.0009064,57978.0,57977.0,1.04570054]
[1723745859472,0.08577727,57994.0,57993.0,0.3509]
[1723745859692,0.37438877,57994.0,57993.0,0.5406]
[1723745859890,0.37438877,57994.0,57968.0,0.0019994]
[1723745859891,0.01,57982.0,57981.0,0.5406]
[1723745860109,0.01,57972.0,57968.0,0.3509]
[1723745860316,0.172491,57974.0,57968.0,0.52245454]
[1723745860551,0.01556683,57973.0,57968.0,0.52245454]
[1723745860802,0.18647963,57962.0,57961.0,0.3509]
[1723745860999,0.18647963,57962.0,57937.0,0.0019994]
[1723745861000,0.517642,57955.0,57954.0,0.3509]
[1723745861264,0.527642,57955.0,57954.0,0.3509]
[1723745861484,0.172547,57955.0,57954.0,0.3509]
[1723745861659,0.172547,57955.0,57922.0,0.34529]
[1723745861660,0.345226,57933.0,57932.0,0.3509]
[1723745861884,0.345226,57933.0,57922.0,0.1897]
[1723745861885,0.17263,57928.0,57922.0,0.1897]
[1723745862095,0.46051226,57933.0,57923.0,0.3509]
[1723745862096,0.01555392,57927.0,57923.0,0.3509]
[1723745862293,0.17264,57924.0,57923.0,0.3509]
[1723745862496,0.01555318,57924.0,57923.0,0.57651454]
[1723745862709,0.172638,57925.0,57923.0,0.3509]
[1723745863714,0.63320642,57924.0,57912.0,0.5406]
[1723745863930,0.01555552,57923.0,57914.0,0.345338]
[1723745864139,0.01555552,57922.0,57916.0,0.345327]
[1723745864361,0.01081577,57928.0,57921.0,0.172648]
[1723745864572,0.01555685,57927.0,57922.0,0.17155454]
[1723745864787,0.00686214,57932.0,57925.0,0.172634]
[1723745865013,0.00686214,57932.0,57922.0,0.51684354]
[1723745865014,0.01555813,57931.0,57923.0,0.3429]
[1723745865217,0.00686214,57932.0,57924.0,0.17155454]
[1723745865424,0.01555762,57931.0,57924.0,0.17155454]
[1723745865648,0.00686214,57932.0,57924.0,0.24026419]
[1723745865881,0.05748194,57947.0,57924.0,0.24026419]
[1723745865882,0.09659304,57945.0,57925.0,0.1861]
[1723745866090,0.09659304,57945.0,57927.0,0.172628]
[1723745866091,0.00686214,57938.0,57927.0,0.172628]
[1723745866332,0.00395363,57942.0,57928.0,0.17155454]
[1723745866333,0.00686214,57942.0,57928.0,0.17155454]
[1723745866544,0.00686214,57946.0,57929.0,0.44422928]
[1723745866748,0.00395363,57949.0,57930.0,0.17155454]
[1723745866749,0.00686214,57944.0,57930.0,0.17155454]
[1723745866964,0.00686214,57944.0,57931.0,0.1861]
[1723745867173,0.09263941,57945.0,57933.0,0.345221]
[1723745867397,0.09263941,57945.0,57932.0,0.17155454]
[1723745867398,0.08577727,57945.0,57934.0,0.17355394]
[1723745867640,0.08577727,57945.0,57938.0,0.345194]
[1723745867844,0.00686214,57950.0,57940.0,0.3429]
[1723745868061,0.08577727,57951.0,57940.0,0.3429]
[1723745868062,0.00686214,57942.0,57940.0,0.3429]
[1723745868502,0.00686214,57942.0,57940.0,0.37719]
[1723745868727,0.345096,57955.0,57940.0,0.37719]
[1723745868728,0.08577727,57960.0,57956.0,0.172542]
[1723745868981,0.00686214,57970.0,57964.0,0.172519]
[1723745869191,0.08577727,57978.0,57958.0,0.874077]
[1723745869192,0.09263941,57966.0,57963.0,0.172522]
[1723745869416,0.00686214,57970.0,57962.0,0.345051]
[1723745869625,0.00686214,57969.0,57962.0,0.17155454]
[1723745869846,0.09263941,57966.0,57958.0,0.529]
[1723745870052,0.09263941,57966.0,57959.0,0.17155454]
[1723745870291,0.08577727,57966.0,57960.0,0.345063]
[1723745870487,0.00686214,57969.0,57962.0,0.172525]
[1723745870697,0.00686214,57965.0,57958.0,0.529]
[1723745870900,0.00686214,57965.0,57959.0,0.34408854]
[1723745871106,0.08577727,57966.0,57960.0,0.345064]
[1723745871313,0.08577727,57966.0,57959.0,0.17155454]
[1723745871314,0.00686214,57962.0,57959.0,0.17155454]
[1723745871943,0.00686214,57969.0,57959.0,0.51662454]
[1723745872154,0.00686214,57973.0,57967.0,0.17251]
[1723745872378,0.344933,57983.0,57969.0,0.1861]
[1723745872379,0.01081577,57983.0,57969.0,0.1861]
[1723745872591,0.00686214,57980.0,57970.0,0.17155454]
[1723745872821,0.00395363,57981.0,57975.0,0.172485]
[1723745872822,0.00686214,57981.0,57975.0,0.172485]
[1723745873033,0.00686214,57973.0,57969.0,0.1861]
[1723745873234,0.08577727,57972.0,57969.0,0.1861]
[1723745873443,0.09263941,57972.0,57969.0,0.1861]
[1723745873643,0.08577727,57972.0,57969.0,0.1861]
[1723745873851,0.09263941,57977.0,57970.0,0.17155454]
[1723745874085,0.08577727,57971.0,57969.0,0.1861]
[1723745874264,0.00686214,57970.0,57969.0,0.1861]
[1723745874677,0.00686214,57972.0,57969.0,0.1861]
[1723745874882,0.344886,57991.0,57970.0,0.17155454]
[1723745874883,0.00686214,57974.0,57970.0,0.17155454]
[1723745875090,0.11373866,57990.0,57979.0,0.172474]
[1723745875091,0.00686214,57983.0,57979.0,0.172474]
[1723745875299,0.00686214,57983.0,57976.0,0.172483]
[1723745875503,0.00686214,57981.0,57977.0,0.17155454]
[1723745875704,0.00395363,57986.0,57977.0,0.17155454]
[1723745875705,0.00686214,57983.0,57977.0,0.17155454]
[1723745875905,0.00686214,57983.0,57978.0,0.172478]
[1723745876113,0.00395363,57986.0,57970.0,0.00023287]
[1723745876114,0.00686214,57974.0,57970.0,0.00023287]
[1723745876317,0.172484,57977.0,57970.0,0.00023287]
[1723745876318,0.00686214,57975.0,57970.0,0.17178741]
[1723745876518,0.00395363,57979.0,57971.0,0.17155454]
[1723745876519,0.00686214,57979.0,57971.0,0.17155454]
[1723745876717,0.00686214,57981.0,57973.0,0.344985]
[1723745876930,0.00686214,57979.0,57974.0,0.17155454]
[1723745877138,0.00686214,57979.0,57970.0,0.00023287]
[1723745877139,0.00686214,57975.0,57971.0,0.17155454]
[1723745877353,0.08577727,57976.0,57971.0,0.34405254]
[1723745877354,0.09263941,57976.0,57971.0,0.34405254]
[1723745877552,0.00686214,57975.0,57971.0,0.17155454]
[1723745877755,0.09263941,57976.0,57973.0,0.172492]
[1723745877959,0.08577727,57976.0,57974.0,0.17249]
[1723745878110,0.00686214,57980.0,57975.0,0.344976]
[1723745878313,0.00686214,57980.0,57976.0,0.25770689]
[1723745878539,0.00686214,57980.0,57976.0,0.17155454]
[1723745878694,0.00686214,57979.0,57976.0,0.17155454]
[1723745879099,0.00686214,57975.0,57970.0,0.00023287]
[1723745879306,0.00686214,57975.0,57971.0,0.17155454]
[1723745879307,0.08577727,57975.0,57971.0,0.17155454]
[1723745879526,0.08577727,57982.0,57971.0,0.17155454]
[1723745879731,0.08577727,57982.0,57972.0,0.34589711]
[1723745879954,0.01986877,57989.0,57982.0,0.3479]
[1723745880164,0.07218662,57984.0,57982.0,0.3479]
[1723745880385,0.17645363,57971.0,57961.0,0.1861]
[1723745880621,0.6072309,57971.0,57961.0,0.1861]
[1723745880827,0.0897309,57971.0,57961.0,0.1861]
[1723745881032,0.00395363,57975.0,57963.0,0.345042]
[1723745881234,0.08577727,57971.0,57967.0,0.17251]
[1723745881451,0.08577727,57971.0,57961.0,0.1861]
[1723745881452,0.0897309,57971.0,57961.0,0.1861]
[1723745881671,0.0897309,57971.0,57963.0,0.172521]
[1723745881896,0.2622309,57971.0,57961.0,0.358628]
[1723745882116,1.12378544,57971.0,57954.0,0.1859]
[1723745882333,0.27779048,57971.0,57957.0,0.345078]
[1723745882542,0.27779048,57971.0,57955.0,0.89026362]
[1723745882543,0.00395363,57957.0,57955.0,0.3756]
[1723745882805,0.08577727,57962.0,57956.0,0.172543]
[1723745883051,0.08577727,57962.0,57955.0,0.3756]
[1723745883052,0.0897309,57962.0,57955.0,0.3756]
[1723745883521,0.08577727,57962.0,57955.0,0.3756]
[1723745883754,0.0897309,57962.0,57956.0,0.0906602]
[1723745883989,0.08577727,57962.0,57959.0,0.172534]
[1723745884270,0.0897309,57962.0,57956.0,0.0906602]
[1723745884690,0.00395363,57959.0,57949.0,0.3756]
[1723745884938,0.08577727,57953.0,57949.0,0.3756]
[1723745885152,0.00395363,57958.0,57952.0,0.345112]
[1723745885379,0.00395363,57965.0,57953.0,0.17155454]
[1723745885614,0.00395363,57969.0,57955.0,0.3756]
[1723745885811,0.01555929,57968.0,57967.0,0.172511]
[1723745886049,0.02794642,57980.0,57967.0,0.72405454]
[1723745886394,0.01556308,57979.0,57972.0,0.344992]
[1723745886607,0.00395363,57994.0,57978.0,0.344958]
[1723745886855,0.53022956,57988.0,57979.0,0.195856]
[1723745887053,0.01556594,57987.0,57979.0,0.17155454]
[1723745887207,0.01556594,57986.0,57985.0,0.172458]